fUST/lending_fUST_20250226
["ID","MTS","AMOUNT","RATE_DAILY","PERIOD"]
[354527198,1740558651176,-962.5,0.00036985,2]
[354527199,1740558651185,-500.0,0.00036985,2]
[354527200,1740558651195,-679.73,0.00036985,2]
[354527201,1740558651204,-5271.87,0.00036985,2]
[354527202,1740558651213,-2041.52,0.00036985,2]
[354527203,1740558651222,-503.04,0.00036986,2]
[354527204,1740558651232,-500.0,0.00036986,2]
[354527205,1740558651243,-500.0,0.00036986,2]
[354527206,1740558651252,-500.0,0.00036986,2]
[354527207,1740558651263,-500.0,0.00036986,2]
[354527208,1740558651273,-723.89,0.00036986,2]
[354527209,1740558651282,-500.0,0.00036986,2]
[354527210,1740558651291,-500.38,0.00036986,2]
[354527211,1740558651301,-500.0,0.00036986,2]
[354527212,1740558651313,-500.0,0.00036986,2]
[354527213,1740558651322,-500.0,0.00036986,2]
[354527214,1740558651333,-502.16741373,0.00036986,2]
[354527215,1740558651344,-501.5,0.00036986,2]
[354527216,1740558651354,-500.0,0.00036986,2]
[354527217,1740558651366,-500.0,0.00036986,2]
[354527218,1740558651375,-500.0,0.00036986,2]
[354527219,1740558651385,-500.0,0.00036986,2]
[354527220,1740558651394,-500.0,0.00036986,2]
[354527221,1740558651403,-512.87,0.00036986,2]
[354527222,1740558651412,-500.0,0.00036986,2]
[354527223,1740558651422,-500.0,0.00036986,2]
[354527224,1740558651431,-500.0,0.00036986,2]
[354527225,1740558651441,-500.0,0.00036986,2]
[354527226,1740558651451,-500.0,0.00036986,2]
[354527227,1740558651460,-396.80034712,0.00036986,2]
[354527228,1740558651469,-500.0,0.00036986,2]
[354527229,1740558651478,-500.77590358,0.00036986,2]
[354527230,1740558651487,-500.0,0.00036986,2]
[354527231,1740558651497,-500.0,0.00036986,2]
[354527232,1740558651507,-500.0,0.00036986,2]
[354527233,1740558651516,-385.57001174,0.00036986,2]
[354527234,1740558651525,-614.65,0.00036986,2]
[354527235,1740558651536,-500.0,0.00036986,2]
[354527236,1740558651545,-500.0,0.00036986,2]
[354527237,1740558651554,-500.0,0.00036986,2]
[354527238,1740558651563,-624.83,0.00036986,2]
[354527239,1740558651572,-529.07807315,0.00036986,2]
[354527240,1740558651581,-500.0,0.00036986,2]
[354527241,1740558651591,-589.02,0.00036986,2]
[354527242,1740558651599,-889.66,0.00036986,2]
[354527243,1740558651610,-500.0,0.00036986,2]
[354527244,1740558651619,-500.0,0.00036986,2]
[354527245,1740558651629,-500.0,0.00036986,2]
[354527246,1740558651638,-1136.23,0.00036986,2]
[354527247,1740558651648,-500.0,0.00036986,2]
[354527248,1740558651658,-1804.81,0.00036986,2]
[354527249,1740558651667,-1190.11,0.00036986,2]
[354527250,1740558651676,-500.0,0.00036986,2]
[354527251,1740558651686,-2633.89,0.00036986,2]
[354527252,1740558651695,-500.0,0.00036986,2]
[354527253,1740558651705,-535.35,0.00036986,2]
[354527254,1740558651714,-770.85,0.00036986,2]
[354527255,1740558651724,-1556.33,0.00036986,2]
[354527256,1740558651734,-700.46,0.00036986,2]
[354527257,1740558651743,-911.0,0.00036986,2]
[354527258,1740558651752,-1160.43,0.00036986,2]
[354527259,1740558651761,-500.0,0.00036986,2]
[354527260,1740558651771,-583.33,0.00036986,2]
[354527261,1740558651780,-583.33,0.00036986,2]
[354527262,1740558651789,-525.46276765,0.00036986,2]
[354527263,1740558651798,-500.0,0.00036986,2]
[354527264,1740558651807,-626.63,0.00036986,2]
[354527265,1740558651816,-518.21,0.00036986,2]
[354527266,1740558651826,-500.0,0.00036986,2]
[354527267,1740558651835,-500.0,0.00036986,2]
[354527268,1740558651844,-547.06,0.00036986,2]
[354527269,1740558651854,-151.0,0.00037,13]
[354527270,1740558651864,-5123.66989175,0.0003725,3]
[354527271,1740558651873,-500.0,0.00037259,2]
[354527272,1740558651883,-500.0,0.00037259,2]
[354527273,1740558651892,-500.0,0.00037259,2]
[354527274,1740558651901,-500.0,0.00037259,2]
[354527275,1740558651911,-1934.61,0.00037259,2]
[354527276,1740558651920,-500.0,0.00037259,2]
[354527277,1740558651929,-791.41,0.00037259,2]
[354527278,1740558651939,-500.0,0.00037259,2]
[354527279,1740558651948,-500.0,0.00037259,2]
[354527280,1740558651957,-1419.4,0.00037259,2]
[354527281,1740558651966,-1936.09,0.00037259,2]
[354527282,1740558651976,-1160.21,0.00037259,2]
[354527283,1740558651985,-728.98,0.00037259,2]
[354527284,1740558651994,-500.0,0.00037259,2]
[354527285,1740558652004,-500.0,0.00037259,2]
[354527286,1740558652013,-2716.92,0.00037259,2]
[354527287,1740558652022,-1164.04,0.00037259,2]
[354527288,1740558652031,-962.5,0.00037259,2]
[354527289,1740558652040,-679.73,0.00037259,2]
[354527290,1740558652049,-500.0,0.00037259,2]
[354527291,1740558652058,-5271.87,0.00037259,2]
[354527292,1740558652067,-2041.52,0.00037259,2]
[354527293,1740558652076,-503.04,0.0003726,2]
[354527294,1740558652085,-500.0,0.0003726,2]
[354527295,1740558652094,-500.0,0.0003726,2]
[354527296,1740558652103,-500.0,0.0003726,2]
[354527297,1740558652114,-500.0,0.0003726,2]
[354527298,1740558652123,-723.89,0.0003726,2]
[354527299,1740558652132,-500.0,0.0003726,2]
[354527300,1740558652142,-500.38,0.0003726,2]
[354527301,1740558652151,-500.0,0.0003726,2]
[354527302,1740558652160,-500.0,0.0003726,2]
[354527303,1740558652169,-501.5,0.0003726,2]
[354527304,1740558652178,-500.0,0.0003726,2]
[354527305,1740558652187,-500.0,0.0003726,2]
[354527306,1740558652198,-500.0,0.0003726,2]
[354527307,1740558652207,-504.21643862,0.0003726,2]
[354527308,1740558652217,-512.87,0.0003726,2]
[354527309,1740558652226,-500.0,0.0003726,2]
[354527310,1740558652235,-500.0,0.0003726,2]
[354527311,1740558652244,-500.0,0.0003726,2]
[354527312,1740558652254,-500.0,0.0003726,2]
[354527313,1740558652263,-500.0,0.0003726,2]
[354527314,1740558652275,-500.0,0.0003726,2]
[354527315,1740558652284,-500.0,0.0003726,2]
[354527316,1740558652293,-500.0,0.0003726,2]
[354527317,1740558652303,-614.65,0.0003726,2]
[354527318,1740558652313,-500.0,0.0003726,2]
[354527319,1740558652322,-500.0,0.0003726,2]
[354527320,1740558652331,-500.0,0.0003726,2]
[354527321,1740558652340,-624.83,0.0003726,2]
[354527322,1740558652351,-500.0,0.0003726,2]
[354527323,1740558652361,-589.02,0.0003726,2]
[354527324,1740558652370,-889.66,0.0003726,2]
[354527325,1740558652380,-500.0,0.0003726,2]
[354527326,1740558652389,-500.0,0.0003726,2]
[354527327,1740558652398,-500.0,0.0003726,2]
[354527328,1740558652408,-1136.23,0.0003726,2]
[354527329,1740558652417,-500.0,0.0003726,2]
[354527330,1740558652426,-1804.81,0.0003726,2]
[354527331,1740558652516,-1190.11,0.0003726,2]
[354527332,1740558652527,-500.0,0.0003726,2]
[354527333,1740558652536,-2633.89,0.0003726,2]
[354527334,1740558652545,-500.0,0.0003726,2]
[354527335,1740558652554,-535.35,0.0003726,2]
[354527336,1740558652564,-770.85,0.0003726,2]
[354527337,1740558652573,-1556.33,0.0003726,2]
[354527338,1740558652583,-700.46,0.0003726,2]
[354527339,1740558652592,-911.0,0.0003726,2]
[354527340,1740558652602,-1160.43,0.0003726,2]
[354527341,1740558652612,-602.89627257,0.0003726,2]
[354527342,1740558652622,-583.33,0.0003726,2]
[354527343,1740558652631,-583.33,0.0003726,2]
[354527344,1740558652640,-500.0,0.0003726,2]
[354527345,1740558652650,-626.63,0.0003726,2]
[354527346,1740558652659,-518.21,0.0003726,2]
[354527347,1740558652669,-500.0,0.0003726,2]
[354527348,1740558652679,-500.0,0.0003726,2]
[354527349,1740558652688,-547.06,0.0003726,2]
[354527350,1740558652698,-151.0,0.000373,12]
[354527351,1740558652707,-151.0,0.000375,14]
[354527352,1740558652717,-5123.66989175,0.00037523,3]
[354527353,1740558652727,-500.0,0.00037533,2]
[354527354,1740558652736,-500.0,0.00037533,2]
[354527355,1740558652745,-500.0,0.00037533,2]
[354527356,1740558652754,-500.0,0.00037533,2]
[354527357,1740558652763,-1934.61,0.00037533,2]
[354527358,1740558652772,-500.0,0.00037533,2]
[354527359,1740558652782,-791.41,0.00037533,2]
[354527360,1740558652791,-500.0,0.00037533,2]
[354527361,1740558652800,-500.0,0.00037533,2]
[354527362,1740558652809,-1419.4,0.00037533,2]
[354527363,1740558652818,-1936.09,0.00037533,2]
[354527364,1740558652828,-1160.21,0.00037533,2]
[354527365,1740558652837,-728.98,0.00037533,2]
[354527366,1740558652847,-500.0,0.00037533,2]
[354527367,1740558652856,-500.0,0.00037533,2]
[354527368,1740558652867,-2716.92,0.00037533,2]
[354527369,1740558652876,-1164.04,0.00037533,2]
[354527370,1740558652885,-962.5,0.00037533,2]
[354527371,1740558652895,-679.73,0.00037533,2]
[354527372,1740558652905,-193.27442543,0.00037533,2]
[354527373,1740558652914,-5271.87,0.00037533,2]
[354527374,1740558652927,-2041.52,0.00037533,2]
[354527375,1740558652937,-503.04,0.00037534,2]
[354527376,1740558652947,-311.41681573,0.00037534,2]
[354527377,1740558652957,-500.0,0.00037534,2]
[354527378,1740558652967,-500.0,0.00037534,2]
[354527379,1740558652977,-500.0,0.00037534,2]
[354527380,1740558652987,-723.89,0.00037534,2]
[354527381,1740558652998,-500.0,0.00037534,2]
[354527382,1740558653007,-500.38,0.00037534,2]
[354527383,1740558653017,-500.0,0.00037534,2]
[354527384,1740558653027,-500.0,0.00037534,2]
[354527385,1740558653037,-501.5,0.00037534,2]
[354527386,1740558653046,-500.0,0.00037534,2]
[354527387,1740558653056,-500.0,0.00037534,2]
[354527388,1740558653065,-500.0,0.00037534,2]
[354527389,1740558653075,-512.87,0.00037534,2]
[354527390,1740558653085,-500.0,0.00037534,2]
[354527391,1740558653094,-500.0,0.00037534,2]
[354527392,1740558653104,-500.0,0.00037534,2]
[354527393,1740558653115,-500.0,0.00037534,2]
[354527394,1740558653125,-500.0,0.00037534,2]
[354527395,1740558653134,-500.0,0.00037534,2]
[354527396,1740558653144,-500.0,0.00037534,2]
[354527397,1740558653154,-500.0,0.00037534,2]
[354527398,1740558653164,-614.65,0.00037534,2]
[354527399,1740558653173,-500.0,0.00037534,2]
[354527400,1740558653183,-500.0,0.00037534,2]
[354527401,1740558653199,-500.0,0.00037534,2]
[354527402,1740558653219,-624.83,0.00037534,2]
[354527403,1740558653239,-500.0,0.00037534,2]
[354527404,1740558653254,-589.02,0.00037534,2]
[354527405,1740558653268,-889.66,0.00037534,2]
[354527406,1740558653279,-286.90690992,0.00037534,2]
[354527407,1740558653288,-500.0,0.00037534,2]
[354527408,1740558653297,-500.0,0.00037534,2]
[354527409,1740558653308,-1136.23,0.00037534,2]
[354527410,1740558653318,-500.0,0.00037534,2]
[354527411,1740558653327,-1804.81,0.00037534,2]
[354527412,1740558653336,-1190.11,0.00037534,2]
[354527413,1740558653349,-500.0,0.00037534,2]
[354527414,1740558653361,-2633.89,0.00037534,2]
[354527415,1740558653371,-500.0,0.00037534,2]
[354527416,1740558653380,-535.35,0.00037534,2]
[354527417,1740558653390,-770.85,0.00037534,2]
[354527418,1740558653400,-1556.33,0.00037534,2]
[354527419,1740558653409,-700.46,0.00037534,2]
[354527420,1740558653419,-911.0,0.00037534,2]
[354527421,1740558653429,-1160.43,0.00037534,2]
[354527422,1740558653439,-583.33,0.00037534,2]
[354527423,1740558653448,-583.33,0.00037534,2]
[354527424,1740558653458,-461.84177489,0.00037534,2]
[354527425,1740558653468,-626.63,0.00037534,2]
[354527426,1740558653477,-518.21,0.00037534,2]
[354527427,1740558653487,-500.0,0.00037534,2]
[354527428,1740558653497,-500.0,0.00037534,2]
[354527429,1740558653507,-547.06,0.00037534,2]
[354527430,1740558653517,-151.0,0.000377,13]
[354527431,1740558653526,-5123.66989175,0.00037797,3]
[354527432,1740558653536,-500.0,0.00037807,2]
[354527433,1740558653546,-500.0,0.00037807,2]
[354527434,1740558653555,-500.0,0.00037807,2]
[354527435,1740558653565,-500.0,0.00037807,2]
[354527436,1740558653575,-1934.61,0.00037807,2]
[354527437,1740558653584,-500.0,0.00037807,2]
[354527438,1740558653594,-791.41,0.00037807,2]
[354527439,1740558653603,-500.0,0.00037807,2]
[354527440,1740558653613,-500.0,0.00037807,2]
[354527441,1740558653622,-1419.4,0.00037807,2]
[354527442,1740558653632,-1936.09,0.00037807,2]
[354527443,1740558653641,-1160.21,0.00037807,2]
[354527444,1740558653652,-728.98,0.00037807,2]
[354527445,1740558653662,-500.0,0.00037807,2]
[354527446,1740558653672,-500.0,0.00037807,2]
[354527447,1740558653683,-2716.92,0.00037807,2]
[354527448,1740558653693,-1164.04,0.00037807,2]
[354527449,1740558653702,-962.5,0.00037807,2]
[354527450,1740558653712,-679.73,0.00037807,2]
[354527451,1740558653721,-5271.87,0.00037807,2]
[354527452,1740558653731,-2041.52,0.00037807,2]
[354527453,1740558653740,-503.04,0.00037808,2]
[354527454,1740558653749,-500.0,0.00037808,2]
[354527455,1740558653760,-500.0,0.00037808,2]
[354527456,1740558653769,-500.0,0.00037808,2]
[354527457,1740558653778,-723.89,0.00037808,2]
[354527458,1740558653788,-500.0,0.00037808,2]
[354527459,1740558653797,-500.38,0.00037808,2]
[354527460,1740558653806,-500.0,0.00037808,2]
[354527461,1740558653816,-500.0,0.00037808,2]
[354527462,1740558653827,-501.5,0.00037808,2]
[354527463,1740558653917,-500.0,0.00037808,2]
[354527464,1740558653927,-500.0,0.00037808,2]
[354527465,1740558653936,-500.0,0.00037808,2]
[354527466,1740558653945,-512.87,0.00037808,2]
[354527467,1740558653954,-500.0,0.00037808,2]
[354527468,1740558653963,-500.0,0.00037808,2]
[354527469,1740558653974,-500.0,0.00037808,2]
[354527470,1740558653983,-500.0,0.00037808,2]
[354527471,1740558653994,-644.12893389,0.00037808,2]
[354527472,1740558654003,-500.0,0.00037808,2]
[354527473,1740558654013,-500.0,0.00037808,2]
[354527474,1740558654022,-614.65,0.00037808,2]
[354527475,1740558654032,-500.0,0.00037808,2]
[354527476,1740558654041,-500.0,0.00037808,2]
[354527477,1740558654050,-500.0,0.00037808,2]
[354527478,1740558654059,-624.83,0.00037808,2]
[354527479,1740558654068,-500.0,0.00037808,2]
[354527480,1740558654077,-589.02,0.00037808,2]
[354527481,1740558654087,-889.66,0.00037808,2]
[354527482,1740558654096,-500.0,0.00037808,2]
[354527483,1740558654105,-500.0,0.00037808,2]
[354527484,1740558654115,-1136.23,0.00037808,2]
[354527485,1740558654124,-500.0,0.00037808,2]
[354527486,1740558654133,-1804.81,0.00037808,2]
[354527487,1740558654142,-1190.11,0.00037808,2]
[354527488,1740558654151,-500.0,0.00037808,2]
[354527489,1740558654161,-2633.89,0.00037808,2]
[354527490,1740558654170,-535.35,0.00037808,2]
[354527491,1740558654179,-770.85,0.00037808,2]
[354527492,1740558654188,-1556.33,0.00037808,2]
[354527493,1740558654198,-700.46,0.00037808,2]
[354527494,1740558654207,-911.0,0.00037808,2]
[354527495,1740558654217,-1160.43,0.00037808,2]
[354527496,1740558654226,-583.33,0.00037808,2]
[354527497,1740558654236,-583.33,0.00037808,2]
[354527498,1740558654245,-626.63,0.00037808,2]
[354527499,1740558654254,-518.21,0.00037808,2]
[354527500,1740558654264,-500.0,0.00037808,2]
[354527501,1740558654276,-500.0,0.00037808,2]
[354527502,1740558654285,-547.06,0.00037808,2]
[354527503,1740558654294,-5123.66989175,0.00037846,3]
[354527504,1740558654303,-500.0,0.00037856,2]
[354527505,1740558654313,-500.0,0.00037856,2]
[354527506,1740558654323,-500.0,0.00037856,2]
[354527507,1740558654332,-500.0,0.00037856,2]
[354527508,1740558654341,-500.0,0.00037856,2]
[354527509,1740558654353,-837.37,0.00037856,2]
[354527510,1740558654363,-500.0,0.00037856,2]
[354527511,1740558654372,-500.0,0.00037856,2]
[354527512,1740558654381,-1223.33,0.00037856,2]
[354527513,1740558654390,-500.0,0.00037856,2]
[354527514,1740558654400,-500.0,0.00037856,2]
[354527515,1740558654409,-500.0,0.00037856,2]
[354527516,1740558654418,-746.59,0.00037856,2]
[354527517,1740558654428,-500.0,0.00037856,2]
[354527518,1740558654437,-996.86,0.00037856,2]
[354527519,1740558654446,-649.16,0.00037856,2]
[354527520,1740558654455,-500.0,0.00037856,2]
[354527521,1740558654465,-809.19,0.00037856,2]
[354527522,1740558654474,-288.87495455,0.00037856,2]
[354527523,1740558654483,-500.0,0.00037856,2]
[354527524,1740558654496,-500.0,0.00037856,2]
[354527525,1740558654515,-500.0,0.00037856,2]
[354527526,1740558654531,-500.0,0.00037856,2]
[354527527,1740558654549,-807.31,0.00037856,2]
[354527528,1740558654568,-500.0,0.00037856,2]
[354527529,1740558654584,-551.31,0.00037856,2]
[354527530,1740558654601,-500.0,0.00037856,2]
[354527531,1740558654617,-500.0,0.00037856,2]
[354527532,1740558654632,-500.0,0.00037856,2]
[354527533,1740558654650,-500.27647179,0.00037856,2]
[354527534,1740558654670,-500.0,0.00037856,2]
[354527535,1740558654684,-246.09345534,0.00037856,2]
[354527536,1740558654699,-1093.48,0.00037856,2]
[354527537,1740558654716,-500.0,0.00037856,2]
[354527538,1740558654731,-500.0,0.00037856,2]
[354527539,1740558654745,-923.19,0.00037856,2]
[354527540,1740558654759,-937.3,0.00037856,2]
[354527541,1740558654773,-500.0,0.00037856,2]
[354527542,1740558654787,-500.0,0.00037856,2]
[354527543,1740558654802,-500.8333303,0.00037856,2]
[354527544,1740558654816,-731.22,0.00037856,2]
[354527545,1740558654829,-836.16,0.00037856,2]
[354527546,1740558654843,-1435.65,0.00037856,2]
[354527547,1740558654857,-500.0,0.00037856,2]
[354527548,1740558654873,-1482.81,0.00037856,2]
[354527549,1740558654888,-745.96,0.00037856,2]
[354527550,1740558654903,-1248.13,0.00037856,2]
[354527551,1740558654923,-631.6,0.00037856,2]
[354527552,1740558654937,-500.0,0.00037856,2]
[354527553,1740558654951,-500.0,0.00037856,2]
[354527554,1740558654965,-500.0,0.00037856,2]
[354527555,1740558654980,-691.31,0.00037856,2]
[354527556,1740558654994,-500.0,0.00037856,2]
[354527557,1740558655008,-1944.22,0.00037856,2]
[354527558,1740558655023,-500.0,0.00037856,2]
[354527559,1740558655037,-500.0,0.00037856,2]
[354527560,1740558655052,-500.0,0.00037856,2]
[354527561,1740558655065,-934.6,0.00037856,2]
[354527562,1740558655081,-500.0,0.00037856,2]
[354527563,1740558655095,-729.0,0.00037856,2]
[354527564,1740558655112,-500.0,0.00037856,2]
[354527565,1740558655127,-936.38,0.00037856,2]
[354527566,1740558655141,-683.43,0.00037856,2]
[354527567,1740558655158,-844.03,0.00037856,2]
[354527568,1740558655186,-500.80551448,0.00037856,2]
[354527569,1740558655204,-500.0,0.00037856,2]
[354527570,1740558655221,-500.0,0.00037856,2]
[354527571,1740558655240,-571.6,0.00037856,2]
[354527572,1740558655255,-500.0,0.00037856,2]
[354527573,1740558655278,-500.0,0.00037856,2]
[354527574,1740558655294,-876.55,0.00037856,2]
[354527575,1740558655311,-500.51651012,0.00037856,2]
[354527576,1740558655325,-519.21,0.00037856,2]
[354527577,1740558655339,-500.0,0.00037856,2]
[354527578,1740558655355,-763.01,0.00037856,2]
[354527579,1740558655371,-884.18,0.00037856,2]
[354527580,1740558655385,-500.0,0.00037856,2]
[354527581,1740558655400,-593.07389397,0.00037856,2]
[354527582,1740558655415,-500.0,0.00037856,2]
[354527583,1740558655429,-247.726822,0.00037856,14]
[354527584,1740558655604,-635.38,0.00037856,2]
[354527585,1740558655617,-500.0,0.00037856,2]
[354527586,1740558655627,-151.0,0.00037856,14]
[354527587,1740558655640,-500.0,0.00037856,2]
[354527588,1740558655652,-500.0,0.00037856,2]
[354527589,1740558655662,-5538.76,0.00037856,2]
[354527590,1740558655671,-784.71,0.00037856,2]
[354527591,1740558655681,-500.0,0.00037856,2]
[354527592,1740558655692,-151.0,0.00037856,14]
[354527593,1740558655701,-500.0,0.00037856,2]
[354527594,1740558655711,-751.07,0.00037856,2]
[354527595,1740558655720,-151.0,0.00037856,14]
[354527596,1740558655730,-511.78,0.00037856,2]
[354527597,1740558655740,-642.18,0.00037856,2]
[354527598,1740558655749,-500.0,0.00037856,2]
[354527599,1740558655759,-151.0,0.00037856,14]
[354527600,1740558655769,-500.0,0.00037856,2]
[354527601,1740558655779,-674.65,0.00037856,2]
[354527602,1740558655788,-726.46,0.00037856,2]
[354527603,1740558655798,-500.0,0.00037856,2]
[354527604,1740558655808,-438.15695586,0.00037856,2]
[354527605,1740558655818,-745.5,0.00037856,2]
[354527606,1740558655829,-501.634988,0.00037856,2]
[354527607,1740558655839,-500.0,0.00037856,2]
[354527608,1740558655853,-151.0,0.00037856,14]
[354527609,1740558655874,-500.0,0.00037856,2]
[354527610,1740558655885,-500.0,0.00037856,2]
[354527611,1740558655895,-503.2,0.00037856,2]
[354527612,1740558655906,-500.0,0.00037856,2]
[354527613,1740558655917,-500.0,0.00037856,2]
[354527614,1740558655927,-500.0,0.00037856,2]
[354527615,1740558655938,-577.1633382,0.00037857,4]
[354527616,1740558655951,-151.0,0.000379,16]
[354527617,1740558655961,-5123.66989175,0.00038071,3]
[354527618,1740558655971,-229.60108584,0.0003808,15]
[354527619,1740558655980,-500.0,0.0003808,15]
[354527620,1740558655990,-500.0,0.0003808,15]
[354527621,1740558656000,-500.0,0.0003808,15]
[354527622,1740558656010,-500.0,0.0003808,15]
[354527623,1740558656020,-500.0,0.0003808,15]
[354527624,1740558656029,-500.0,0.0003808,15]
[354527625,1740558656039,-505.0654962,0.0003808,15]
[354527626,1740558656048,-396.11993974,0.0003808,15]
[354527627,1740558656058,-500.0,0.0003808,15]
[354527628,1740558656068,-500.0,0.0003808,15]
[354527629,1740558656078,-500.0,0.0003808,15]
[354527630,1740558656088,-500.0,0.0003808,15]
[354527631,1740558656098,-500.0,0.0003808,15]
[354527632,1740558656108,-500.0,0.0003808,15]
[354527633,1740558656118,-500.0,0.00038081,2]
[354527634,1740558656128,-500.0,0.00038081,2]
[354527635,1740558656138,-500.0,0.00038081,2]
[354527636,1740558656148,-500.0,0.00038081,2]
[354527637,1740558656158,-1934.61,0.00038081,2]
[354527638,1740558656168,-500.0,0.00038081,2]
[354527639,1740558656178,-791.41,0.00038081,2]
[354527640,1740558656188,-500.0,0.00038081,2]
[354527641,1740558656199,-500.0,0.00038081,2]
[354527642,1740558656208,-1419.4,0.00038081,2]
[354527643,1740558656218,-1936.09,0.00038081,2]
[354527644,1740558656228,-1160.21,0.00038081,2]
[354527645,1740558656238,-728.98,0.00038081,2]
[354527646,1740558656248,-500.0,0.00038081,2]
[354527647,1740558656257,-500.0,0.00038081,2]
[354527648,1740558656273,-2716.92,0.00038081,2]
[354527649,1740558656282,-1164.04,0.00038081,2]
[354527650,1740558656292,-962.5,0.00038081,2]
[354527651,1740558656301,-679.73,0.00038081,2]
[354527652,1740558656313,-5271.87,0.00038081,2]
[354527653,1740558656322,-2041.52,0.00038081,2]
[354527654,1740558656331,-503.04,0.00038082,2]
[354527655,1740558656341,-500.0,0.00038082,2]
[354527656,1740558656351,-500.0,0.00038082,2]
[354527657,1740558656360,-500.0,0.00038082,2]
[354527658,1740558656370,-723.89,0.00038082,2]
[354527659,1740558656380,-500.0,0.00038082,2]
[354527660,1740558656389,-500.38,0.00038082,2]
[354527661,1740558656399,-500.0,0.00038082,2]
[354527662,1740558656408,-500.0,0.00038082,2]
[354527663,1740558656417,-501.5,0.00038082,2]
[354527664,1740558656427,-500.0,0.00038082,2]
[354527665,1740558656436,-500.0,0.00038082,2]
[354527666,1740558656446,-500.0,0.00038082,2]
[354527667,1740558656456,-512.87,0.00038082,2]
[354527668,1740558656465,-500.0,0.00038082,2]
[354527669,1740558656474,-500.0,0.00038082,2]
[354527670,1740558656484,-500.0,0.00038082,2]
[354527671,1740558656494,-500.0,0.00038082,2]
[354527672,1740558656504,-500.0,0.00038082,2]
[354527673,1740558656513,-500.0,0.00038082,2]
[354527674,1740558656524,-614.65,0.00038082,2]
[354527675,1740558656534,-500.0,0.00038082,2]
[354527676,1740558656544,-500.0,0.00038082,2]
[354527677,1740558656553,-500.0,0.00038082,2]
[354527678,1740558656563,-624.83,0.00038082,2]
[354527679,1740558656574,-377.61637978,0.00038082,2]
[354527680,1740558656583,-589.02,0.00038082,2]
[354527681,1740558656593,-889.66,0.00038082,2]
[354527682,1740558656604,-500.0,0.00038082,2]
[354527683,1740558656616,-500.0,0.00038082,2]
[354527684,1740558656626,-1136.23,0.00038082,2]
[354527685,1740558656636,-515.38623527,0.00038082,2]
[354527686,1740558656647,-1804.81,0.00038082,2]
[354527687,1740558656658,-1190.11,0.00038082,2]
[354527688,1740558656669,-500.0,0.00038082,2]
[354527689,1740558656680,-2633.89,0.00038082,2]
[354527690,1740558656691,-535.35,0.00038082,2]
[354527691,1740558656701,-770.85,0.00038082,2]
[354527692,1740558656712,-1556.33,0.00038082,2]
[354527693,1740558656722,-700.46,0.00038082,2]
[354527694,1740558656732,-911.0,0.00038082,2]
[354527695,1740558656742,-1160.43,0.00038082,2]
[354527696,1740558656752,-583.33,0.00038082,2]
[354527697,1740558656762,-583.33,0.00038082,2]